Cogmind - Beta 10 @@@ ROGUE MODE // 2020.09.16 @ 23:22:49 Player: muxecoid Result: Destroyed by G-34 Mercenary with Small Laser Performance ------------- Evolutions (1) 500 Regions Visited (5) 1000 Robots Destroyed (20) 100 Value Destroyed (487) 487 Prototype IDs (23) 460 Alien Tech Used (0) 0 Bonus (514) 514 TOTAL SCORE: 3061 Bonus ------- Follower Combat Kills 217 Aligned with FarCom 300 Friendly Fire -3 Cogmind --------- Core Integrity 0/400 Matter 235/300 Energy 80/100 System Corruption 0% Temperature Cool (6) Movement Core (1400) Ox27 Location -9/Exiles Parts ------- > --- POWER (1) -------- (None) > --- PROPULSION (2) --- (None) > --- UTILITY (4) ------ Large Storage Unit Large Storage Unit Large Storage Unit High-capacity Storage Unit > --- WEAPON (2) ------- Assault Rifle > --- INVENTORY (30) --- Improved Heat Sink Lightpack 2.0 Light Armor Plating EM Pulse Gun Assault Rifle Assault Rifle Assault Rifle Assault Rifle Light Assault Rifle Light Assault Rifle Heavy Assault Rifle Heavy Assault Rifle AWS/Autocannon EMP Blaster Rocket Launcher Mining Claw Peak State ------------ > --- POWER ------------ Light Nuclear Core > --- PROPULSION ------- Light Treads Light Treads > --- UTILITY ---------- Large Storage Unit Large Storage Unit Large Storage Unit High-capacity Storage Unit > --- WEAPON ----------- Assault Rifle Assault Rifle > --- INVENTORY -------- Improved Heat Sink Lightpack 2.0 Light Armor Plating EM Pulse Gun Assault Rifle Assault Rifle Assault Rifle Assault Rifle Assault Rifle Light Assault Rifle Light Assault Rifle Heavy Assault Rifle Heavy Assault Rifle AWS/Autocannon EMP Blaster Rocket Launcher Mining Claw Deploy-a-Sentry Deploy-a-Sentry [Rating: 19] Favorites ----------- Power Ion Engine Engine Ion Engine Power Core Light Nuclear Core Propulsion Compact Wheel Treads Light Treads Leg Aluminum Leg Wheel Compact Wheel Utility Large Storage Unit Device Improved Heat Sink Storage Large Storage Unit Protection Light Armor Plating Weapon Assault Rifle Energy Gun Small Laser Ballistic Gun Assault Rifle Ballistic Cannon Light Cannon Launcher EMP Blaster Slashing Weapon Mining Claw Build | -11 -10 -10 -9 -9 -9 ------- Run | Scr Mat Min Mat Min Exi Slots Evolved 2 | . . . 2 . . Power . | . . . . . . Propulsion . | . . . . . . Utility 2 | . . . 2 . . Weapon . | . . . . . . Parts Attached 33 | 6 2 . 7 7 11 Power 3 | 1 . . 1 . 1 Engine 2 | 1 . . 1 . . Core 1 | . . . . . 1 Reactor . | . . . . . . Propulsion 8 | 2 . . 1 . 5 Treads 4 | . . . 1 . 3 Leg 1 | . . . . . 1 Wheel 3 | 2 . . . . 1 Hover . | . . . . . . Flight . | . . . . . . Utility 8 | 1 2 . 2 . 3 Device 1 | . . . 1 . . Storage 6 | 1 2 . 1 . 2 Processor . | . . . . . . Hackware . | . . . . . . Protection 1 | . . . . . 1 Artifact . | . . . . . . Weapon 14 | 2 . . 3 7 2 Energy Gun 1 | 1 . . . . . Energy Cannon . | . . . . . . Ballistic Gun 8 | 1 . . 2 3 2 Ballistic Cannon 1 | . . . . 1 . Launcher 3 | . . . . 3 . Special Weapon . | . . . . . . Impact Weapon . | . . . . . . Slashing Weapon 1 | . . . 1 . . Piercing Weapon . | . . . . . . Special Melee Weapon . | . . . . . . Unidentified Prototypes . | . . . . . . Parts Lost 11 | . . . 1 1 9 Power 2 | . . . . . 2 Propulsion 6 | . . . 1 . 5 Utility . | . . . . . . Weapon 3 | . . . . 1 2 Highest Loss Streak 9 | . . . 1 1 9 Average Slot Usage (%) 98 | . 99 100 93 100 98 Engine 11 | . 14 14 11 11 10 Treads 7 | . . . 7 11 12 Wheel 15 | . 28 28 14 11 8 Device 6 | . . . 6 11 8 Storage 31 | . 27 28 31 33 33 Energy Gun 4 | . 14 14 2 . . Ballistic Gun 14 | . 14 14 18 12 14 Ballistic Cannon 4 | . . . . 8 6 Naked Turns . | . . . . . . Heaviest Build 89 | 12 56 56 73 77 89 Greatest Support 40 | 26 26 26 26 16 40 Greatest Overweight (x) 5 | 1 2 2 4 4 5 Average Overweight (x) 3 | . 1 2 3 4 3 Largest Inventory Capacity 30 | 6 18 18 24 24 30 Average Capacity 21 | 5 17 18 23 24 23 Most Carried 26 | 4 14 14 15 20 26 Average Carried 15 | 2 8 14 13 17 20 Final Capacity 30 | 6 18 18 24 24 30 Final Carried 20 | 4 14 14 15 20 19 Class Distribution -------------------- 65% | Hauler-Mutant 34% | Mutant Dominant Class ---------------- Mutant | -10/Materials Mutant | -10/Mines Hauler-Mutant | -9/Materials Hauler-Mutant | -9/Mines Hauler-Mutant | -9/Exiles Resources | -11 -10 -10 -9 -9 -9 ----------- Run | Scr Mat Min Mat Min Exi Matter Collected 662 | 217 63 15 147 220 . Remotely . | . . . . . . Salvage Created 590 | . . 13 195 382 . Parts 37 | . . 1 19 17 . Haulers Intercepted . | . . . . . . Recyclers Shooed . | . . . . . . Parts Field Recycled . | . . . . . . Retrieved Matter . | . . . . . . Parts Self-Destructed . | . . . . . . Prevented . | . . . . . . Kills | -11 -10 -10 -9 -9 -9 ------- Run | Scr Mat Min Mat Min Exi Combat Hostiles Destroyed 19 | . . 1 7 11 . Guns 10 | . . 1 7 2 . Cannons 2 | . . . . 2 . AOE 6 | . . . . 6 . Classes Destroyed 5 | . . 1 2 2 . Builder 1 | . . . . 1 . Swarmer 9 | . . 1 4 4 . Grunt 8 | . . . 2 6 . Brawler 1 | . . . . 1 . Sentry 1 | . . . 1 . . Best Kill Streak 5 | . . 1 3 5 . Combat Bots Only 5 | . . 1 3 5 . Max Kills in Single Turn 1 | . . 1 1 1 . Gunslinging . | . . . . . . Exploded 1 | . . . . 1 . Melee . | . . . . . . Uniques/NPCs Destroyed . | . . . . . . Combat | -11 -10 -10 -9 -9 -9 -------- Run | Scr Mat Min Mat Min Exi Damage Taken 1774 | . . 56 287 347 1084 Core 407 | . . . 74 50 283 Absorbed by Shields . | . . . . . . Core Remaining (%) 100 | 100 . 100 . . . Volleys Fired 57 | . 2 3 23 29 . Largest 2 | . 2 2 2 2 . Hottest 60 | . 60 60 40 55 . Shots Fired 93 | . 4 6 36 47 . Gun 69 | . 4 6 36 23 . Cannon 13 | . . . . 13 . Launcher 11 | . . . . 11 . Special . | . . . . . . Kinetic 77 | . 2 3 36 36 . Thermal 5 | . 2 3 . . . Explosive . | . . . . . . Electromagnetic 11 | . . . . 11 . Robot Hit Streak 10 | . 2 1 9 10 . Robot Miss Streak 4 | . 1 1 3 4 . Penetration Max . | . . . . . . Secondary Targets . | . . . . . . Shots Hit Robots 58 | . 3 3 22 30 . Core Hits 32 | . 1 1 13 17 . Critical Hits . | . . . . . . Critical Kills . | . . . . . . Critical Parts Destroyed . | . . . . . . Melee Attacks 1 | . . . 1 . . Impact . | . . . . . . Slashing 1 | . . . 1 . . Piercing . | . . . . . . Sneak Attacks . | . . . . . . Combat Hostiles . | . . . . . . Follow-up Attacks . | . . . . . . Damage Inflicted 972 | . 32 31 260 649 . Guns 501 | . 32 25 241 203 . Cannons 135 | . . . . 135 . Explosions 311 | . . . . 311 . Melee . | . . . . . . Ramming 25 | . . 6 19 . . Kinetic 615 | . 11 25 241 338 . Thermal 28 | . 21 . . 7 . Explosive . | . . . . . . Electromagnetic 304 | . . . . 304 . Impact . | . . . . . . Slashing . | . . . . . . Piercing . | . . . . . . Highest Corruption . | . . . . . . Average Corruption . | . . . . . . Corruption Purged . | . . . . . . Overload Shots . | . . . . . . Overflow Damage 6 | . . . . 6 . Projectiles . | . . . . . . Explosions 6 | . . . . 6 . Melee . | . . . . . . Knockbacks 2 | . . . . 2 . Impact . | . . . . . . Kinetic 2 | . . . . 2 . Secondary . | . . . . . . Self-Inflicted Damage 45 | . . 3 9 33 . Shots 6 | . . . . 6 . Rammed 2 | . . 1 1 . . Targets Rammed 2 | . . 1 1 . . Kicked . | . . . . . . Crushed . | . . . . . . Highest Temperature 15 | . . . 15 . 1 Average Temperature 7 | . . . 8 . 1 Received Heat Transfer 432 | . . . 78 144 210 Siege Activations . | . . . . . . Robots Corrupted 1 | . . . . 1 . Combat Hostiles 1 | . . . . 1 . Parts Fried 3 | . . . . 3 . Impact Corruptions . | . . . . . . Robots Melted . | . . . . . . Combat Hostiles . | . . . . . . Parts Melted . | . . . . . . Heat Transferred 100 | . 50 . . 50 . Parts Sabotaged . | . . . . . . Parts Stolen . | . . . . . . Parts Stripped . | . . . . . . Power Chain Reactions 1 | . . . . 1 . Missiles Intercepted . | . . . . . . Alert | -11 -10 -10 -9 -9 -9 ------- Run | Scr Mat Min Mat Min Exi Peak Influence 386 | . 15 79 290 386 . Initial 112 | . . 5 30 112 . Average 146 | . 10 29 199 240 . Maximum Alert Level 1 | . . . 1 1 . Low Security (%) 72 | 100 100 100 57 53 . Level 1 27 | . . . 42 46 . Level 2 . | . . . . . . Level 3 . | . . . . . . Level 4 . | . . . . . . Level 5 . | . . . . . . High Security . | . . . . . . Max Security . | . . . . . . Squads Dispatched . | . . . . . . Investigation . | . . . . . . Extermination . | . . . . . . Reinforcement . | . . . . . . Assault . | . . . . . . Garrison . | . . . . . . Intercept . | . . . . . . Construction Impeded . | . . . . . . Haulers Reinforced . | . . . . . . Stealth | -11 -10 -10 -9 -9 -9 --------- Run | Scr Mat Min Mat Min Exi Distress Signals 1 | . . . 1 . . Communications Jammed . | . . . . . . Distress Signals . | . . . . . . Times Spotted 58 | . 4 3 16 14 21 Peak Tracking Total 19 | . 2 3 5 3 19 Tactical Retreats 3 | . . . 1 2 . Traps | -11 -10 -10 -9 -9 -9 ------- Run | Scr Mat Min Mat Min Exi Traps Triggered . | . . . . . . Indirectly . | . . . . . . Trap Hack Attempts . | . . . . . . Triggered . | . . . . . . Disarmed . | . . . . . . Reprogrammed . | . . . . . . Reused . | . . . . . . Traps Extracted . | . . . . . . Installed . | . . . . . . Triggered . | . . . . . . Exploded 1 | . . . . . 1 Machines | -11 -10 -10 -9 -9 -9 ---------- Run | Scr Mat Min Mat Min Exi Machines Disabled . | . . . . . . Max in Single Turn . | . . . . . . Machines Sabotaged . | . . . . . . Garrisons Compromised . | . . . . . . Overloaded Fab Kills . | . . . . . . Fab Network Shutdowns . | . . . . . . Hacking | -11 -10 -10 -9 -9 -9 --------- Run | Scr Mat Min Mat Min Exi Machines Accessed 12 | . 6 . . 1 5 Terminals 7 | . 6 . . 1 . Fabricators . | . . . . . . Repair Stations . | . . . . . . Recycling Units . | . . . . . . Scanalyzers . | . . . . . . Garrison Access . | . . . . . . Total Hacks 35 | . 15 . . 2 18 Successful 23 | . 4 . . 1 18 Failed 11 | . 10 . . 1 . Catastrophic 1 | . 1 . . . . Database Lockouts 1 | . 1 . . . . Manual 15 | . 13 . . 1 1 Terminals 17 | . 15 . . 2 . Fabricators . | . . . . . . Repair Stations . | . . . . . . Recycling Units . | . . . . . . Scanalyzers . | . . . . . . Garrison Access . | . . . . . . Terminal Hacks 20 | . 1 . . 1 18 Record 17 | . . . . . 17 Robot Analysis 1 | . 1 . . . . Zone Layout 1 | . . . . 1 . EX-Prototype ID Bank 1 | . . . . . 1 Fabricator Hacks . | . . . . . . Repair Station Hacks . | . . . . . . Recycling Unit Hacks . | . . . . . . Scanalyzer . | . . . . . . Garrison Access Hacks . | . . . . . . Unauthorized Hacks 3 | . 3 . . . . Terminals 3 | . 3 . . . . Assimilate 1 | . 1 . . . . Botnet 2 | . 2 . . . . Fabricators . | . . . . . . Repair Stations . | . . . . . . Recycling Units . | . . . . . . Scanalyzers . | . . . . . . Garrison Access . | . . . . . . Data Cores Recovered . | . . . . . . Used . | . . . . . . Hacking Detections 7 | . 6 . . 1 . Full Trace Events . | . . . . . . Feedback Events . | . . . . . . Feedback Blocked . | . . . . . . Robot Schematics Acquired . | . . . . . . Robots Built . | . . . . . . Matter . | . . . . . . Time . | . . . . . . Total Robot Build Rating . | . . . . . . Part Schematics Acquired . | . . . . . . Parts Built . | . . . . . . Matter . | . . . . . . Time . | . . . . . . Total Part Build Rating . | . . . . . . Parts Repaired . | . . . . . . Time . | . . . . . . Parts Recycled . | . . . . . . Recycled Matter . | . . . . . . Retrieved Matter . | . . . . . . Retrieved Components . | . . . . . . Parts Scanalyzed . | . . . . . . Part Schematics Acquired . | . . . . . . Parts Damaged . | . . . . . . Bothacking | -11 -10 -10 -9 -9 -9 ------------ Run | Scr Mat Min Mat Min Exi Used RIF Installer . | . . . . . . Robots Hacked . | . . . . . . Non-combat . | . . . . . . Combat . | . . . . . . Robot Hacks Applied . | . . . . . . Relay Couplers Released . | . . . . . . Robots Rewired . | . . . . . . Allies Hacked . | . . . . . . Hacks Repelled . | . . . . . . Allies | -11 -10 -10 -9 -9 -9 -------- Run | Scr Mat Min Mat Min Exi Total Allies 2 | . 1 1 . . . Largest Group 2 | . 1 2 2 1 1 Highest-Rated Group 41 | . 10 41 41 10 10 Highest-Rated Ally 31 | . 10 31 31 10 10 Total Orders . | . . . . . . Ally Attacks 32 | . . 5 10 . 17 Total Damage 1069 | . . 84 84 . 901 Kills 9 | . . 2 1 . 6 Allies Corrupted . | . . . . . . Allies Melted 1 | . . . . . 1 Turrets Deployed 3 | . . . . . 3 Intel | -11 -10 -10 -9 -9 -9 ------- Run | Scr Mat Min Mat Min Exi Robot Analysis Total 1 | . 1 . . . . Derelict Logs Recovered 2 | . . . . 2 . Drone Launches . | . . . . . . Drone Recoveries . | . . . . . . Exploration | -11 -10 -10 -9 -9 -9 ------------- Run | Scr Mat Min Mat Min Exi Turns Passed 2226 | 46 326 272 252 733 597 Spaces Moved 1476 | 38 264 230 124 433 387 Core 1 | 1 . . . . . Treads 62 | . . . 1 . 61 Legs . | . . . . . . Wheels 1413 | 37 264 230 123 433 326 Hover . | . . . . . . Flight . | . . . . . . Fastest Speed 50 | 50 90 110 110 140 140 Average Speed 129 | 87 108 110 129 140 148 Slowest Speed 240 | 90 110 110 220 140 240 Overloaded Moves . | . . . . . . Propulsion Burnouts . | . . . . . . Robots Hopped . | . . . . . . Cave-ins Triggered . | . . . . . . Exploration Rate (%) 45 | 3 59 35 27 87 61 Regions Visited 5 Branch Regions 3 Pre-discovered Areas 3 | . . . . 2 1 Known Exits Taken . | . . . . . . Unknown Exits Taken 5 | 1 1 1 1 1 . Scrap Searched 2 | . . . . 2 . Spaces Dug 1 | . . . 1 . . Terrain Destroyed 7 | . . . 1 6 . Melee 1 | . . . 1 . . Projectile . | . . . . . . AOE 6 | . . . . 6 . Terrain Rammed . | . . . . . . Walls Destroyed . | . . . . . . Machines Disabled . | . . . . . . Actions | -11 -10 -10 -9 -9 -9 --------- Run | Scr Mat Min Mat Min Exi Total 1689 | 47 300 243 179 511 409 Wait 85 | . 20 10 18 37 . Move 1471 | 37 263 229 123 432 387 Hop . | . . . . . . Pick Up 30 | 4 11 . 4 6 5 Fast Attach 11 | 6 1 . 2 . 2 Attach 10 | . . . 3 1 6 Detach . | . . . . . . Swap 12 | . 1 . 2 6 3 Drop 10 | . 2 . 2 . 6 Fire 57 | . 2 3 23 29 . Melee 1 | . . . 1 . . Ram 2 | . . 1 1 . . Kick . | . . . . . . Crush . | . . . . . . Escape Stasis . | . . . . . . Rewire . | . . . . . . Trap . | . . . . . . Miscellaneous . | . . . . . . Route ------- -11/Scrapyard -10/Materials -10/Mines -9/Materials -9/Mines (discovered 3 exits: [*Mat x2] / *Exi) -9/Exiles History --------- Turn | Location | Event 14 | -11/Scrapyard | Discovered new exit (range 16) 47 | -11/Scrapyard | Entered Materials 306 | -10/Materials | Build established: Mutant 328 | -10/Materials | Discovered new exit (range 12) 368 | -10/Materials | Central database locked down 373 | -10/Materials | Entered Mines 373 | -10/Mines | Accompanied by 1 ally 442 | -10/Mines | Discovered new exit (range 16) 449 | -10/Mines | Received a Mining Laser from a helpful Derelict 566 | -10/Mines | Assembled infested the area 571 | -10/Mines | Assisted by a Guerilla fighting off Assembled 645 | -10/Mines | Entered Materials 645 | -9/Materials | Accompanied by 2 allies 645 | -9/Materials | Evolved 2 slots: Utility x2 873 | -9/Materials | Discovered new exit (range 14) 897 | -9/Materials | Entered Mines 897 | -9/Mines | Accompanied by 1 ally 981 | -9/Mines | Build established: Hauler-Mutant 1323 | -9/Mines | Discovered new exit (range 5) 1423 | -9/Mines | Learned location of Zion (-7) 1488 | -9/Mines | Discovered new exit (range 3) 1496 | -9/Mines | Received a Rocket Launcher from a helpful Derelict 1616 | -9/Mines | Deemed a non-threat by the Exiles lab entrance 1616 | -9/Mines | Discovered new exit (range 5) 1630 | -9/Mines | Entered Exiles 1630 | -9/Exiles | Accompanied by 1 ally 1664 | -9/Exiles | Met 8R-AWN 1689 | -9/Exiles | Met EX-HEX 1742 | -9/Exiles | Met EX-DEC 1807 | -9/Exiles | Met EX-BIN 1824 | -9/Exiles | Aligned with FarCom system 1825 | -9/Exiles | Given EX-Vault access code 1945 | -9/Exiles | Opened EX-Vault 1979 | -9/Exiles | Warned to stay clear of 0b10 Research branches 2011 | -9/Exiles | Exiles lab attacked by MAIN.C 2124 | -9/Exiles | Found Deploy-a-Sentry 2126 | -9/Exiles | Found Deploy-a-Sentry 2128 | -9/Exiles | Found Deploy-a-Sentry 2135 | -9/Exiles | Found Lightpack 2.0 2140 | -9/Exiles | Found AWS/Autocannon 2192 | -9/Exiles | DAS Turret deployed 2197 | -9/Exiles | Core integrity fell below 50% 2217 | -9/Exiles | Core integrity fell below 20% 2219 | -9/Exiles | DAS Turret deployed 2226 | -9/Exiles | DAS Turret deployed 2227 | -9/Exiles | Destroyed by G-34 Mercenary with Small Laser Last Messages --------------- 02218_ DAS Turret heat damages Prototype Ballistic Cannon. 02218_ Slug penetrates DAS Turret. 02218_ FarCom Aligner disabled. 02219_ DAS Turret deployed. 02219_ P-60 Hacker destroyed. 02219_ DAS Turret destroyed. 02220_ G-34 Mercenary knocked back. 02222_ Slug penetrates Machine. 02222_ H-55 Commando knocked back. 02224_ Dropped Deploy-a-Sentry. 02224_ G-34 Mercenary destroyed. 02225_ DAS Turret heat damages Prototype Ballistic Cannon. 02225_ Slug penetrates DAS Turret. 02225_ DAS Turret critical meltdown. 02225_ Slug penetrates Machine. 02225_ Penetrated by Slug. 02225_ Lgt. Treads destroyed. 02226_ DAS Turret deployed. 02226_ H-55 Commando knocked back. 02226_ Aluminum Leg destroyed. Map ----- +----------------------------------------------------+ | ????????????????????????#""""""## #########??? | | ????????????????????????#"""" ## #??????????? | | ????????????????????????#""X" #??????????? | | ????????????????????????#" #??????????? | | ????????????????????????#" ## #??????????? | | ????????????????????????#""""""## #?#########? | | ????????????????????????##"###### #?#"""""""#? | | ???????????????????????? "?????# #?#"""""""#? | | ???????????????????????"""??????# #?#"""""""#? | | ???????????????????????"""?????## ###"" """"#? | | ???????????????????????????????#" """#? | | ???????????????????????????????#" """#? | | ???????????????????????????????# """#? | | ???????????????????????????????#" """#? | | ??????????????????#####????????#" """#? | | ?????????????????? """#???????# """## | | ?????????????????"" """#???????## ] """"" | | ????????????????#"" #????????# """## | | ????????????????#"" #????????# "X" """"" | | ????????????????#"" "#????????# = """ # | | ????????????????? ""?????????# """""""""#? | | ??????????????????" "?????????##!% ###########? | | ??????????????????# #????????##=%* #??????????? | | ????????????????### ###?###### [ %/ #??????????? | | ???? """#####X# #"### "" "b h ##?????????? | | ??? "" @ g h ##???###### | | ??? "" t bh * #####""""" | | ???# " % gg =%% " """ | | ????## *% [= "" | | ?????### = " | | ???????## *% | | ????????## g |= [ % | | ?????????##" !%=!* | | ??????????#""" gg% ![!=%"""""" | | ?????????##" =hh %=%=######""" | | ?????????#"" =% ""##????#####""" | | ?????????#""" p """##?????????##""" | | ?????????""" """##???????????#"""" | | ????????#" % ""#???????????##"" | | ????????#"" ########??####"""" | | ????????#""" ## ####""" | | ????????#"" """" | | ????????##"" | | ?????????#"""" | | ??????????# " | | ??????????#" " "" "" | | ??????????#"""" ""## ##""" " " ""# | | ??????????#"" ""#### ######""" """# | | ???????????" """"##??# #????###""""## | | ??????????#""" """#???# #??????######? | +----------------------------------------------------+ Best States ------------- Heat Dissipation 42 Energy Generation 14 Energy Capacity 250 Matter Stores 300 Matter Capacity 300 Sight Range 16 Terrain Scan Density 10 Armor Coverage 150 Evasion (%) 42 Recoil Reduction 2 Item Schematics ----------------- None Robot Schematics ------------------ None Fabricated ------------ Nothing Alien Tech Used ----------------- None Achievements -------------- None Challenges ------------ None Game ------ Seed RocketDeepInsulator Manual? 0 Play Time 00:40:45 Cumulative 222.0 hours Start 2020.09.12 @ 20:22:48 End 2020.09.16 @ 23:22:49 Sessions 5 Manual Loads 0 Difficulty Rogue Special Mode None Game No. 124 Rogue 124 Adventurer 0 Explorer 0 Win Type - Total 9 Types 7/0/1/1/0/0/0/0/0 Lore% 63 Gallery% 81 Achievement% 64 Wizard Run 0 Options --------- ASCII 0 Keyboard 0 Movement Mouse Keybinds 0 Fullscreen 1 Font 24/Smallcaps Map View 76x50 Tactical HUD 1 Map Filters NONE Filters NONE Steam 1 RUN: d683ddcb-09ce-42f4-8449-186bd7ab8fe6